fUST/lending_fUST_20250102
["ID","MTS","AMOUNT","RATE_DAILY","PERIOD"]
[347420020,1735780253674,-500.0,0.0002,3]
[347420021,1735780253683,-767.85,0.0002,3]
[347420022,1735780253692,-707.14,0.0002,3]
[347420023,1735780253702,-500.0,0.0002,3]
[347420024,1735780253711,-500.0,0.0002,3]
[347420025,1735780253720,-424.940255,0.0002,2]
[347420026,1735780253729,-424.940255,0.0002,2]
[347420027,1735780253739,-424.940255,0.0002,2]
[347420028,1735780253748,-1605.29,0.0002,3]
[347420029,1735780253758,-424.940255,0.0002,2]
[347420030,1735780253769,-424.940255,0.0002,2]
[347420031,1735780253778,-424.940249,0.0002,2]
[347420032,1735780253787,-500.0,0.0002,3]
[347420033,1735780253796,-643.16,0.0002,3]
[347420034,1735780253806,-151.36378773,0.0002,2]
[347420035,1735780253815,-500.0,0.0002,3]
[347420036,1735780253825,-500.0,0.0002,3]
[347420037,1735780253835,-962.53,0.0002,3]
[347420038,1735780253844,-4635.84,0.0002,3]
[347420039,1735780253854,-500.0,0.0002,3]
[347420040,1735780253863,-559.63,0.0002,3]
[347420041,1735780253873,-500.0,0.0002,3]
[347420042,1735780253882,-705.37,0.0002,3]
[347420043,1735780253891,-500.0,0.0002,3]
[347420044,1735780253901,-1168.11,0.0002,3]
[347420045,1735780253911,-3140.79,0.0002,3]
[347420046,1735780253920,-756.81,0.0002,3]
[347420047,1735780253929,-917.17,0.0002,3]
[347420048,1735780253939,-3789.54,0.0002,3]
[347420049,1735780253948,-729.68,0.0002,3]
[347420050,1735780253958,-21689.88,0.0002,3]
[347420051,1735780253968,-1879.51,0.0002,3]
[347420052,1735780253979,-500.0,0.0002,3]
[347420053,1735780253988,-528.01,0.0002,3]
[347420054,1735780253997,-500.0,0.0002,3]
[347420055,1735780254007,-850.65,0.0002,3]
[347420056,1735780254018,-500.0,0.0002,3]
[347420057,1735780254028,-500.0,0.0002,3]
[347420058,1735780254037,-500.0,0.0002,3]
[347420059,1735780254046,-1322.01,0.0002,2]
[347420060,1735780254057,-763.58,0.0002,3]
[347420061,1735780254068,-1927.52,0.0002,3]
[347420062,1735780254077,-1134.33,0.0002,3]
[347420063,1735780254086,-500.0,0.0002,3]
[347420064,1735780254096,-500.0,0.0002,3]
[347420065,1735780254105,-725.007242,0.0002,2]
[347420066,1735780254115,-725.007242,0.0002,2]
[347420067,1735780254125,-2124.41,0.0002,3]
[347420068,1735780254135,-725.007242,0.0002,2]
[347420069,1735780254145,-500.0,0.0002,3]
[347420070,1735780254154,-725.007234,0.0002,2]
[347420071,1735780254163,-1073.51,0.0002,3]
[347420072,1735780254172,-1135.05,0.0002,3]
[347420073,1735780254182,-500.0,0.0002,3]
[347420074,1735780254191,-1144.62,0.0002,3]
[347420075,1735780254200,-513.07,0.0002,3]
[347420076,1735780254209,-678.15,0.0002,3]
[347420077,1735780254219,-1023.82,0.0002,3]
[347420078,1735780254228,-1443.83,0.0002,3]
[347420079,1735780254237,-500.0,0.0002,3]
[347420080,1735780254246,-569.79,0.0002,3]
[347420081,1735780254255,-500.0,0.0002,3]
[347420082,1735780254265,-454.73186624,0.0002,3]
[347420083,1735780254274,-500.0,0.0002,3]
[347420084,1735780254284,-426.581053,0.0002,2]
[347420085,1735780254293,-426.581053,0.0002,2]
[347420086,1735780254303,-426.581053,0.0002,2]
[347420087,1735780254312,-526.71,0.0002,3]
[347420088,1735780254322,-426.581053,0.0002,2]
[347420089,1735780254331,-426.581053,0.0002,2]
[347420090,1735780254340,-638.384621,0.0002,2]
[347420091,1735780254350,-426.581049,0.0002,2]
[347420092,1735780254359,-638.384621,0.0002,2]
[347420093,1735780254368,-638.384621,0.0002,2]
[347420094,1735780254378,-591.11,0.0002,3]
[347420095,1735780254387,-638.384621,0.0002,2]
[347420096,1735780254398,-638.384621,0.0002,2]
[347420097,1735780254407,-638.384619,0.0002,2]
[347420098,1735780254417,-500.0,0.00020021,2]
[347420099,1735780254426,-1000.0,0.00020021,2]
[347420100,1735780254436,-217.7125275,0.0002007,2]
[347420101,1735780254445,-151.0,0.000201,4]
[347420102,1735780254455,-305.07379908,0.00020113,2]
[347420103,1735780254464,-151.0,0.00020147,2]
[347420104,1735780254474,-151.0,0.00020147,2]
[347420105,1735780254483,-724.04508033,0.00020216,2]
[347420106,1735780254493,-500.0,0.00020268,2]
[347420107,1735780254502,-402.77238433,0.00020272,2]
[347420108,1735780254512,-500.05727885,0.00020273,2]
[347420109,1735780254521,-151.0,0.00020273,2]
[347420110,1735780254530,-151.0,0.00020273,2]
[347420111,1735780254539,-151.0,0.00020273,2]
[347420112,1735780254548,-151.0,0.00020273,2]
[347420113,1735780254557,-151.0,0.00020273,2]
[347420114,1735780254566,-151.0,0.00020273,2]
[347420115,1735780254575,-325.405084,0.00020273,2]
[347420116,1735780254584,-325.405084,0.00020273,2]
[347420117,1735780254593,-325.405084,0.00020273,2]
[347420118,1735780254602,-325.405084,0.00020273,2]
[347420119,1735780254611,-151.0,0.00020273,2]
[347420120,1735780254620,-151.0,0.00020273,2]
[347420121,1735780254630,-195.444076,0.00020273,2]
[347420122,1735780254639,-539.244787,0.00020273,2]
[347420123,1735780254648,-539.244787,0.00020273,2]
[347420124,1735780254658,-539.244787,0.00020273,2]
[347420125,1735780254667,-539.244787,0.00020273,2]
[347420126,1735780254676,-151.0,0.00020273,2]
[347420127,1735780254686,-151.0,0.00020273,2]
[347420128,1735780254695,-3158.388509,0.00020273,2]
[347420129,1735780254820,-3158.388509,0.00020273,2]
[347420130,1735780254831,-3158.388509,0.00020273,2]
[347420131,1735780254840,-3158.388509,0.00020273,2]
[347420132,1735780254849,-217.550367,0.00020273,2]
[347420133,1735780254859,-217.550367,0.00020273,2]
[347420134,1735780254869,-217.550367,0.00020273,2]
[347420135,1735780254878,-217.550367,0.00020273,2]
[347420136,1735780254887,-217.550367,0.00020273,2]
[347420137,1735780254898,-217.550371,0.00020273,2]
[347420138,1735780254907,-242.308778,0.00020273,2]
[347420139,1735780254916,-242.308778,0.00020273,2]
[347420140,1735780254926,-242.308778,0.00020273,2]
[347420141,1735780254935,-242.308778,0.00020273,2]
[347420142,1735780254944,-254.529318,0.00020273,2]
[347420143,1735780254954,-254.529318,0.00020273,2]
[347420144,1735780254963,-500.0,0.00020273,3]
[347420145,1735780254974,-254.529318,0.00020273,2]
[347420146,1735780254986,-254.529327,0.00020273,2]
[347420147,1735780254995,-248.512638,0.00020273,2]
[347420148,1735780255005,-248.512638,0.00020273,2]
[347420149,1735780255017,-248.512638,0.00020273,2]
[347420150,1735780255027,-248.512638,0.00020273,2]
[347420151,1735780255036,-248.512638,0.00020273,2]
[347420152,1735780255046,-248.512635,0.00020273,2]
[347420153,1735780255056,-500.0,0.00020273,3]
[347420154,1735780255066,-500.0,0.00020273,3]
[347420155,1735780255076,-315.422068,0.00020273,2]
[347420156,1735780255085,-315.422069,0.00020273,2]
[347420157,1735780255094,-151.0,0.00020273,2]
[347420158,1735780255104,-285.538794,0.00020273,2]
[347420159,1735780255114,-285.538794,0.00020273,2]
[347420160,1735780255123,-1497.811251,0.00020273,2]
[347420161,1735780255133,-285.538794,0.00020273,2]
[347420162,1735780255143,-285.538786,0.00020273,2]
[347420163,1735780255154,-1497.81125717,0.00020273,2]
[347420164,1735780255164,-564.54,0.00020273,3]
[347420165,1735780255173,-157.081093,0.00020273,2]
[347420166,1735780255182,-2694.844095,0.00020273,2]
[347420167,1735780255192,-2694.844087,0.00020273,2]
[347420168,1735780255201,-500.0,0.00020273,3]
[347420169,1735780255209,-282.656744,0.00020273,2]
[347420170,1735780255218,-500.0,0.00020273,3]
[347420171,1735780255228,-500.0,0.00020273,3]
[347420172,1735780255238,-282.656738,0.00020273,2]
[347420173,1735780255247,-1363.681793,0.00020273,2]
[347420174,1735780255256,-1363.681793,0.00020273,2]
[347420175,1735780255266,-1363.681793,0.00020273,2]
[347420176,1735780255275,-1363.681795,0.00020273,2]
[347420177,1735780255284,-500.0,0.00020273,3]
[347420178,1735780255293,-500.0,0.00020273,3]
[347420179,1735780255303,-500.0,0.00020273,3]
[347420180,1735780255312,-500.0,0.00020273,3]
[347420181,1735780255322,-500.0,0.00020273,3]
[347420182,1735780255332,-500.0,0.00020273,3]
[347420183,1735780255341,-570.52,0.00020273,3]
[347420184,1735780255351,-734.17,0.00020273,3]
[347420185,1735780255360,-229.739009,0.00020273,2]
[347420186,1735780255370,-229.739009,0.00020273,2]
[347420187,1735780255379,-229.739009,0.00020273,2]
[347420188,1735780255389,-547.276778,0.00020273,2]
[347420189,1735780255398,-229.739018,0.00020273,2]
[347420190,1735780255407,-547.276778,0.00020273,2]
[347420191,1735780255417,-547.276778,0.00020273,2]
[347420192,1735780255426,-547.276771,0.00020273,2]
[347420193,1735780255436,-640.33,0.00020273,3]
[347420194,1735780255445,-500.0,0.00020273,3]
[347420195,1735780255455,-2349.26,0.00020273,3]
[347420196,1735780255464,-722.51,0.00020273,3]
[347420197,1735780255474,-644.18,0.00020273,3]
[347420198,1735780255483,-506.34,0.00020273,3]
[347420199,1735780255492,-500.0,0.00020273,3]
[347420200,1735780255502,-500.0,0.00020273,3]
[347420201,1735780255512,-500.0,0.00020273,3]
[347420202,1735780255523,-500.0,0.00020273,3]
[347420203,1735780255533,-500.0,0.00020273,3]
[347420204,1735780255543,-500.0,0.00020273,3]
[347420205,1735780255553,-2569.39,0.00020273,3]
[347420206,1735780255563,-500.0,0.00020273,3]
[347420207,1735780255572,-566.36,0.00020273,3]
[347420208,1735780255582,-500.0,0.00020273,3]
[347420209,1735780255592,-500.0,0.00020273,3]
[347420210,1735780255601,-500.0,0.00020273,3]
[347420211,1735780255611,-500.0,0.00020273,3]
[347420212,1735780255620,-500.0,0.00020273,3]
[347420213,1735780255630,-500.0,0.00020273,3]
[347420214,1735780255639,-834.95,0.00020273,3]
[347420215,1735780255648,-601.73,0.00020273,3]
[347420216,1735780255657,-520.33,0.00020273,3]
[347420217,1735780255667,-535.69,0.00020273,3]
[347420218,1735780255676,-500.0,0.00020273,3]
[347420219,1735780255685,-539.85,0.00020273,3]
[347420220,1735780255694,-500.0,0.00020273,3]
[347420221,1735780255704,-767.85,0.00020273,3]
[347420222,1735780255714,-707.14,0.00020273,3]
[347420223,1735780255723,-500.0,0.00020273,3]
[347420224,1735780255732,-500.0,0.00020273,3]
[347420225,1735780255741,-1605.29,0.00020273,3]
[347420226,1735780255750,-500.0,0.00020273,3]
[347420227,1735780255760,-643.16,0.00020273,3]
[347420228,1735780255772,-500.0,0.00020273,3]
[347420229,1735780255782,-335.37345164,0.00020273,3]
[347420230,1735780255791,-962.53,0.00020273,3]
[347420231,1735780255800,-4635.84,0.00020273,3]
[347420232,1735780255810,-500.0,0.00020273,3]
[347420233,1735780255819,-559.63,0.00020273,3]
[347420234,1735780255829,-500.0,0.00020273,3]
[347420235,1735780255839,-705.37,0.00020273,3]
[347420236,1735780255848,-500.0,0.00020273,3]
[347420237,1735780255858,-1168.11,0.00020273,3]
[347420238,1735780255867,-3140.79,0.00020273,3]
[347420239,1735780255877,-756.81,0.00020273,3]
[347420240,1735780255886,-917.17,0.00020273,3]
[347420241,1735780255895,-3789.54,0.00020273,3]
[347420242,1735780255905,-729.68,0.00020273,3]
[347420243,1735780255914,-21689.88,0.00020273,3]
[347420244,1735780255923,-1879.51,0.00020273,3]
[347420245,1735780255933,-500.0,0.00020273,3]
[347420246,1735780255942,-528.01,0.00020273,3]
[347420247,1735780255951,-500.0,0.00020273,3]
[347420248,1735780255961,-850.65,0.00020273,3]
[347420249,1735780255971,-500.0,0.00020273,3]
[347420250,1735780255984,-500.0,0.00020273,3]
[347420251,1735780255994,-500.0,0.00020273,3]
[347420252,1735780256003,-1322.01,0.00020273,2]
[347420253,1735780256012,-499.0,0.00020273,2]
[347420254,1735780256023,-763.58,0.00020273,3]
[347420255,1735780256032,-1927.52,0.00020273,3]
[347420256,1735780256041,-1134.33,0.00020273,3]
[347420257,1735780256051,-500.0,0.00020273,3]
[347420258,1735780256060,-500.0,0.00020273,3]
[347420259,1735780256070,-2124.41,0.00020273,3]
[347420260,1735780256080,-500.0,0.00020273,3]
[347420261,1735780256089,-1073.51,0.00020273,3]
[347420262,1735780256099,-1135.05,0.00020273,3]
[347420263,1735780256108,-500.0,0.00020273,3]
[347420264,1735780256117,-1144.62,0.00020273,3]
[347420265,1735780256127,-513.07,0.00020273,3]
[347420266,1735780256136,-678.15,0.00020273,3]
[347420267,1735780256145,-1023.82,0.00020273,3]
[347420268,1735780256155,-1443.83,0.00020273,3]
[347420269,1735780256164,-500.0,0.00020273,3]
[347420270,1735780256174,-569.79,0.00020273,3]
[347420271,1735780256183,-500.0,0.00020273,3]
[347420272,1735780256192,-500.0,0.00020273,3]
[347420273,1735780256202,-526.71,0.00020273,3]
[347420274,1735780256211,-591.11,0.00020273,3]
[347420275,1735780256221,-151.0,0.000203,4]
[347420276,1735780256230,-500.0,0.00020306,2]
[347420277,1735780256239,-151.0,0.000204,3]
[347420278,1735780256248,-213.731598,0.00020447,2]
[347420279,1735780256258,-724.04508033,0.00020479,2]
[347420280,1735780256269,-781.31688646,0.00020514,2]
[347420281,1735780256279,-461.075417,0.00020521,2]
[347420282,1735780256288,-484.79997143,0.00020521,2]
[347420283,1735780256298,-1000.0,0.00020521,2]
[347420284,1735780256307,-151.0,0.00020547,2]
[347420285,1735780256317,-151.0,0.00020547,2]
[347420286,1735780256326,-151.0,0.00020547,2]
[347420287,1735780256336,-151.0,0.00020547,2]
[347420288,1735780256345,-268.42881,0.00020547,2]
[347420289,1735780256355,-325.405084,0.00020547,2]
[347420290,1735780256364,-325.405084,0.00020547,2]
[347420291,1735780256374,-325.405084,0.00020547,2]
[347420292,1735780256383,-325.405084,0.00020547,2]
[347420293,1735780256392,-151.0,0.00020547,2]
[347420294,1735780256401,-151.0,0.00020547,2]
[347420295,1735780256410,-539.244787,0.00020547,2]
[347420296,1735780256419,-539.244787,0.00020547,2]
[347420297,1735780256429,-539.244787,0.00020547,2]
[347420298,1735780256438,-539.244787,0.00020547,2]
[347420299,1735780256447,-151.0,0.00020547,2]
[347420300,1735780256457,-151.0,0.00020547,2]
[347420301,1735780256466,-3158.388509,0.00020547,2]
[347420302,1735780256476,-3158.388509,0.00020547,2]
[347420303,1735780256485,-3158.388509,0.00020547,2]
[347420304,1735780256495,-3158.388509,0.00020547,2]
[347420305,1735780256504,-1012.435966,0.00020547,2]
[347420306,1735780256514,-1012.435966,0.00020547,2]
[347420307,1735780256523,-242.308778,0.00020547,2]
[347420308,1735780256533,-242.308778,0.00020547,2]
[347420309,1735780256543,-242.308778,0.00020547,2]
[347420310,1735780256553,-242.308778,0.00020547,2]
[347420311,1735780256562,-500.0,0.00020547,3]
[347420312,1735780256571,-500.0,0.00020547,3]
[347420313,1735780256581,-500.0,0.00020547,3]
[347420314,1735780256590,-564.54,0.00020547,3]
[347420315,1735780256600,-500.0,0.00020547,3]
[347420316,1735780256610,-500.0,0.00020547,3]
[347420317,1735780256620,-500.0,0.00020547,3]
[347420318,1735780256629,-500.0,0.00020547,3]
[347420319,1735780256639,-500.0,0.00020547,3]
[347420320,1735780256649,-500.0,0.00020547,3]
[347420321,1735780256659,-500.0,0.00020547,3]
[347420322,1735780256668,-500.0,0.00020547,3]
[347420323,1735780256678,-500.0,0.00020547,3]
[347420324,1735780256688,-570.52,0.00020547,3]
[347420325,1735780256698,-734.17,0.00020547,3]
[347420326,1735780256707,-640.33,0.00020547,3]
[347420327,1735780256718,-355.08103151,0.00020547,3]
[347420328,1735780256728,-2349.26,0.00020547,3]
[347420329,1735780256738,-722.51,0.00020547,3]
[347420330,1735780256750,-644.18,0.00020547,3]
[347420331,1735780256761,-506.34,0.00020547,3]
[347420332,1735780256772,-500.0,0.00020547,3]
[347420333,1735780256781,-500.0,0.00020547,3]
[347420334,1735780256790,-156.33955984,0.00020547,3]
[347420335,1735780256799,-500.0,0.00020547,3]
[347420336,1735780256809,-500.0,0.00020547,3]
[347420337,1735780256819,-500.0,0.00020547,3]
[347420338,1735780256828,-2569.39,0.00020547,3]
[347420339,1735780256838,-500.0,0.00020547,3]
[347420340,1735780256847,-566.36,0.00020547,3]
[347420341,1735780256857,-500.0,0.00020547,3]
[347420342,1735780256866,-500.0,0.00020547,3]
[347420343,1735780256876,-500.0,0.00020547,3]
[347420344,1735780256885,-500.0,0.00020547,3]
[347420345,1735780256894,-500.0,0.00020547,3]
[347420346,1735780256903,-500.0,0.00020547,3]
[347420347,1735780256913,-834.95,0.00020547,3]
[347420348,1735780256922,-601.73,0.00020547,3]
[347420349,1735780256931,-520.33,0.00020547,3]
[347420350,1735780256940,-535.69,0.00020547,3]
[347420351,1735780256950,-500.0,0.00020547,3]
[347420352,1735780256959,-539.85,0.00020547,3]
[347420353,1735780256968,-500.0,0.00020547,3]
[347420354,1735780256980,-767.85,0.00020547,3]
[347420355,1735780256989,-707.14,0.00020547,3]
[347420356,1735780256999,-500.0,0.00020547,3]
[347420357,1735780257009,-500.0,0.00020547,3]
[347420358,1735780257018,-1605.29,0.00020547,3]
[347420359,1735780257027,-500.0,0.00020547,3]
[347420360,1735780257036,-643.16,0.00020547,3]
[347420361,1735780257046,-500.0,0.00020547,3]
[347420362,1735780257057,-962.53,0.00020547,3]
[347420363,1735780257066,-4635.84,0.00020547,3]
[347420364,1735780257075,-500.0,0.00020547,3]
[347420365,1735780257084,-559.63,0.00020547,3]
[347420366,1735780257093,-500.0,0.00020547,3]
[347420367,1735780257103,-705.37,0.00020547,3]
[347420368,1735780257112,-500.0,0.00020547,3]
[347420369,1735780257121,-1168.11,0.00020547,3]
[347420370,1735780257131,-3140.79,0.00020547,3]
[347420371,1735780257249,-756.81,0.00020547,3]
[347420372,1735780257259,-917.17,0.00020547,3]
[347420373,1735780257270,-3789.54,0.00020547,3]
[347420374,1735780257279,-729.68,0.00020547,3]
[347420375,1735780257288,-21689.88,0.00020547,3]
[347420376,1735780257298,-1879.51,0.00020547,3]
[347420377,1735780257307,-528.01,0.00020547,3]
[347420378,1735780257317,-500.0,0.00020547,3]
[347420379,1735780257326,-500.0,0.00020547,3]
[347420380,1735780257335,-850.65,0.00020547,3]
[347420381,1735780257345,-500.0,0.00020547,3]
[347420382,1735780257355,-500.0,0.00020547,3]
[347420383,1735780257364,-500.0,0.00020547,3]
[347420384,1735780257373,-1322.01,0.00020547,2]
[347420385,1735780257383,-763.58,0.00020547,3]
[347420386,1735780257393,-1927.52,0.00020547,3]
[347420387,1735780257402,-1134.33,0.00020547,3]
[347420388,1735780257411,-500.0,0.00020547,3]
[347420389,1735780257421,-500.0,0.00020547,3]
[347420390,1735780257431,-2124.41,0.00020547,3]
[347420391,1735780257439,-500.0,0.00020547,3]
[347420392,1735780257449,-1073.51,0.00020547,3]
[347420393,1735780257459,-1135.05,0.00020547,3]
[347420394,1735780257468,-500.0,0.00020547,3]
[347420395,1735780257478,-1144.62,0.00020547,3]
[347420396,1735780257487,-513.07,0.00020547,3]
[347420397,1735780257497,-678.15,0.00020547,3]
[347420398,1735780257507,-1023.82,0.00020547,3]
[347420399,1735780257518,-1443.83,0.00020547,3]
[347420400,1735780257528,-569.79,0.00020547,3]
[347420401,1735780257537,-500.0,0.00020547,3]
[347420402,1735780257547,-500.0,0.00020547,3]
[347420403,1735780257556,-500.0,0.00020547,3]
[347420404,1735780257567,-526.71,0.00020547,3]
[347420405,1735780257577,-591.11,0.00020547,3]
[347420406,1735780257587,-154.02,0.00020547,2]
[347420407,1735780257596,-3013.43414673,0.0002055,7]
[347420408,1735780257606,-3013.43414673,0.0002055,7]
[347420409,1735780257615,-3013.43414673,0.0002055,7]
[347420410,1735780257624,-3013.43414673,0.0002055,7]
[347420411,1735780257634,-3013.43414673,0.0002055,7]
[347420412,1735780257643,-3013.43414673,0.0002055,7]
[347420413,1735780257652,-3013.43414673,0.0002055,7]
[347420414,1735780257662,-3013.43414673,0.0002055,7]
[347420415,1735780257671,-3013.43414673,0.0002055,7]
[347420416,1735780257681,-3013.43414673,0.0002055,7]
[347420417,1735780257690,-3013.43414673,0.0002055,7]
[347420418,1735780257700,-3013.43414673,0.0002055,7]
[347420419,1735780257709,-3013.43414673,0.0002055,7]
[347420420,1735780257719,-3013.43414673,0.0002055,7]
[347420421,1735780257729,-3013.43414673,0.0002055,7]
[347420422,1735780257739,-3013.43414673,0.0002055,7]
[347420423,1735780257751,-3013.43414673,0.0002055,7]
[347420424,1735780257760,-3013.43414673,0.0002055,7]
[347420425,1735780257771,-3013.43414673,0.0002055,7]
[347420426,1735780257781,-3013.43,0.0002055,7]
[347420427,1735780257791,-155.16275429,0.0002055,7]
[347420428,1735780257801,-155.16275429,0.0002055,7]
[347420429,1735780257810,-155.16275429,0.0002055,7]
[347420430,1735780257820,-155.16275429,0.0002055,7]
[347420431,1735780257830,-155.16275429,0.0002055,7]
[347420432,1735780257839,-155.16275429,0.0002055,7]
[347420433,1735780257848,-155.16275429,0.0002055,7]
[347420434,1735780257858,-155.16275429,0.0002055,7]
[347420435,1735780257867,-155.16275429,0.0002055,7]
[347420436,1735780257877,-155.16275429,0.0002055,7]
[347420437,1735780257886,-155.16275429,0.0002055,7]
[347420438,1735780257896,-155.16275429,0.0002055,7]
[347420439,1735780257905,-155.16275429,0.0002055,7]
[347420440,1735780257914,-155.16275429,0.0002055,7]
[347420441,1735780257923,-155.16275429,0.0002055,7]
[347420442,1735780257933,-155.16275429,0.0002055,7]
[347420443,1735780257942,-155.16275429,0.0002055,7]
[347420444,1735780257951,-155.16275429,0.0002055,7]
[347420445,1735780257960,-155.16,0.0002055,7]
[347420446,1735780257970,-420.0,0.00020602,2]
[347420447,1735780257983,-6881.01364455,0.0002061,2]
[347420448,1735780257992,-10317.16417232,0.00020613,2]
[347420449,1735780258002,-151.0,0.00020638,5]
[347420450,1735780258011,-275.3999,0.00020684,2]
[347420451,1735780258022,-3545.89,0.000207,2]
[347420452,1735780258032,-151.0,0.000207,2]
[347420453,1735780258041,-151.0,0.000207,4]
[347420454,1735780258052,-461.075417,0.00020712,2]
[347420455,1735780258062,-305.07379908,0.0002072,2]
[347420456,1735780258071,-724.04508033,0.00020742,2]
[347420457,1735780258080,-23440.03794703,0.0002079,2]
[347420458,1735780258090,-151.0,0.0002079,2]
[347420459,1735780258100,-325.405084,0.0002079,2]
[347420460,1735780258109,-325.405084,0.0002079,2]
[347420461,1735780258118,-539.244787,0.0002079,2]
[347420462,1735780258128,-539.244789,0.0002079,2]
[347420463,1735780258137,-1012.435974,0.0002079,2]
[347420464,1735780258146,-242.308778,0.0002079,2]
[347420465,1735780258155,-242.308768,0.0002079,2]
[347420466,1735780258165,-2000.0,0.000208,2]
[347420467,1735780258175,-2000.0,0.000208,2]
[347420468,1735780258185,-151.0,0.000208,2]
[347420469,1735780258194,-151.0,0.000208,2]
[347420470,1735780258203,-3158.388509,0.000208,2]
[347420471,1735780258213,-2161.08938428,0.000208,2]
[347420472,1735780258334,-997.29911572,0.000208,2]
[347420473,1735780258345,-2000.0,0.000208,2]
[347420474,1735780258355,-150.0,0.000208,2]
[347420475,1735780258364,-129.96172578,0.000208,2]
[347420476,1735780258375,-250.61398885,0.000208,2]
[347420477,1735780258598,-500.0,0.00019177,2]
[347420478,1735780258608,-500.0,0.00019177,2]
[347420479,1735780258617,-500.0,0.00019177,2]
[347420480,1735780258627,-633.6235253,0.00019177,2]
[347420481,1735780258636,-342.0,0.00019177,2]
[347420482,1735780258646,-296.44304715,0.00019177,2]
[347420483,1735780258656,-500.0,0.00019177,2]
[347420484,1735780258665,-500.0,0.00019177,2]
[347420485,1735780258675,-3422.46324335,0.000208,2]
[347420486,1735780258684,-151.0,0.00020821,2]
[347420487,1735780258694,-151.0,0.00020821,2]
[347420488,1735780258703,-325.405084,0.00020821,2]
[347420489,1735780258713,-325.405074,0.00020821,2]
[347420490,1735780258723,-500.0,0.00020821,3]
[347420491,1735780258733,-428.2857986,0.00020821,3]
[347420492,1735780258742,-468.3742276,0.00020821,3]
[347420493,1735780258754,-31.6257724,0.00020821,3]
[347420494,1735780258764,-564.54,0.00020821,3]
[347420495,1735780258774,-500.0,0.00020821,3]
[347420496,1735780258783,-500.0,0.00020821,3]
[347420497,1735780258792,-500.0,0.00020821,3]
[347420498,1735780258802,-500.0,0.00020821,3]
[347420499,1735780258812,-500.0,0.00020821,3]
[347420500,1735780258821,-500.0,0.00020821,3]
[347420501,1735780258831,-500.0,0.00020821,3]
[347420502,1735780258840,-500.0,0.00020821,3]
[347420503,1735780258849,-500.0,0.00020821,3]
[347420504,1735780258859,-570.52,0.00020821,3]
[347420505,1735780258868,-734.17,0.00020821,3]
[347420506,1735780258878,-640.33,0.00020821,3]
[347420507,1735780258887,-2349.26,0.00020821,3]
[347420508,1735780258896,-722.51,0.00020821,3]
[347420509,1735780258906,-644.18,0.00020821,3]
[347420510,1735780258915,-506.34,0.00020821,3]
[347420511,1735780258925,-500.0,0.00020821,3]
[347420512,1735780258934,-500.0,0.00020821,3]
[347420513,1735780258944,-218.82008929,0.00020821,3]
[347420514,1735780258953,-500.0,0.00020821,3]
[347420515,1735780258963,-500.0,0.00020821,3]
[347420516,1735780258972,-2569.39,0.00020821,3]
[347420517,1735780258984,-500.0,0.00020821,3]
[347420518,1735780258993,-566.36,0.00020821,3]
[347420519,1735780259003,-500.0,0.00020821,3]